Cogmind - Beta 15 @@@ ROGUE MODE // 2025.06.11 @ 12:56:40 Player: Mas5akr Result: Destroyed by P-80 Master with Gamma Rifle Performance ------------- Evolutions (7) 3500 Regions Visited (26) 5200 Robots Destroyed (300) 1500 Value Destroyed (10008) 10008 Prototype IDs (65) 1300 Alien Tech Used (3) 600 Bonus (2484) 2484 TOTAL SCORE: 24592 Bonus ------- High Alert Combat Kills 282 Follower Combat Kills 102 Met Data Miner 300 Met Zhirov 300 Met Warlord at Base 500 MAIN.C Attacked Warlord 500 Scanned by Researcher 500 Cogmind --------- Core Integrity 0/1300 Matter 22/300 Energy 136/170 System Corruption 11% Temperature Cool (0) Movement Walking (116) Location -3/Testing Parts ------- > --- POWER (1) -------- Light Antimatter Reactor > --- PROPULSION (6) --- Myomer Leg Myomer Leg Biometal Leg > --- UTILITY (12) ----- Medium Storage Unit Advanced Sensor Array Advanced Sensor Array Layered Light Armor Plating Medium Regenerative Plating Medium Regenerative Plating Medium Regenerative Plating Experimental Hardlight Generator System Mapper System Shield Improved System Shield Component Analysis Suite > --- WEAPON (3) ------- High-powered Shotgun Enhanced Force Lance > --- INVENTORY (10) --- Compact Matter Pod (150) Advanced Signal Interpreter AEGIS Remote Shield Minesniffer Drone Bay (9/10) Portable AFG (100) Peak State ------------ > --- POWER ------------ Micro Antimatter Reactor > --- PROPULSION ------- Improved Surge Thruster Field Propulsion Array Electron Diverter Impulse Thruster Array > --- UTILITY ---------- Medium Storage Unit Experimental Optical Array Advanced Sensor Array Advanced Signal Interpreter Seismic Detector Improved Phase Shifter Improved Hacking Suite System Mapper System Shield Improved System Shield Advanced System Shield Ghost Barrier > --- WEAPON ----------- Advanced Datajack Enhanced Force Lance Vortex Lance > --- INVENTORY -------- Light Antimatter Reactor Improved Surge Thruster Compact Matter Pod Structural Scanner Layered Light Armor Plating Minesniffer Drone Bay Transdimensional Reconstructor Fusion Bomb Launcher Vortex Lance Portable AFG [Rating: 146] Favorites ----------- Power Nuclear Core Engine Makeshift Power Source Power Core Nuclear Core Reactor Light Antimatter Reactor Propulsion Light Treads Treads Light Treads Leg Aluminum Leg Wheel Wheel Hover Unit Gravmag System Flight Unit Impulse Thruster Utility Hacking Suite Device Advanced Sensor Array Storage Large Storage Unit Processor Improved Signal Interpreter Hackware Hacking Suite Protection Utility Shielding Weapon Powered Hammer Energy Gun Medium Laser Energy Cannon Advanced Beam Cannon Ballistic Gun Light Assault Rifle Launcher Shock Bomb Launcher Special Weapon RU-N14's Throwing Claymores v3 Impact Weapon Powered Hammer Slashing Weapon Power Sword Piercing Weapon Spear Special Melee Weapon Advanced Datajack Build | -11 -10 -10 -9 -9 -8 -7 -7 -7 -7 -6 -6 -6 -6 -5 -5 -5 -5 -5 -4 -4 -4 -4 -4 -3 -3 -3 ------- Run | Yrd Mat Min Mat Min Mat Fac Low Low Dat Pro Fac Low Zio Pro Fac Upp Upp Zhi Pro Fac Upp Upp War Pro Res Tes Slots Evolved 14 | . . . 2 . 2 2 . . . . 2 . . . 2 . . . . 2 . . . . 2 . Power . | . . . . . . . . . . . . . . . . . . . . . . . . . . . Propulsion 4 | . . . 1 . 1 . . . . . . . . . 1 . . . . . . . . . 1 . Utility 10 | . . . 1 . 1 2 . . . . 2 . . . 1 . . . . 2 . . . . 1 . Weapon . | . . . . . . . . . . . . . . . . . . . . . . . . . . . Parts Attached 228 | 7 9 1 20 6 32 31 2 . . 5 18 2 3 . 13 . 2 1 . 19 . . 9 . 25 23 Power 28 | 1 1 1 3 2 2 3 . . . 1 3 1 . . 2 . 1 1 . 2 . . . . 3 1 Engine 14 | 1 1 1 2 2 1 . . . . . 2 1 . . 2 . 1 . . . . . . . . . Core 6 | . . . 1 . 1 3 . . . . 1 . . . . . . . . . . . . . . . Reactor 8 | . . . . . . . . . . 1 . . . . . . . 1 . 2 . . . . 3 1 Propulsion 75 | 2 2 . 8 2 16 12 . . . 3 6 . . . 3 . 1 . . 7 . . 1 . 7 5 Treads 21 | . . . 8 2 7 4 . . . . . . . . . . . . . . . . . . . . Leg 10 | 2 2 . . . 3 . . . . . . . . . . . . . . . . . . . . 3 Wheel 4 | . . . . . 1 3 . . . . . . . . . . . . . . . . . . . . Hover 6 | . . . . . 5 . . . . . . . . . . . . . . . . . . . . 1 Flight 34 | . . . . . . 5 . . . 3 6 . . . 3 . 1 . . 7 . . 1 . 7 1 Utility 83 | 1 2 . 3 1 9 12 2 . . 1 5 1 2 . 6 . . . . 7 . . 6 . 11 14 Device 33 | 1 . . 1 . 1 3 2 . . . 2 1 1 . 3 . . . . 2 . . 3 . 5 8 Storage 3 | . 1 . . . . 1 . . . . 1 . . . . . . . . . . . . . . . Processor 10 | . . . 1 . . 2 . . . 1 1 . . . . . . . . . . . 2 . 2 1 Hackware 18 | . . . . . 1 3 . . . . 1 . 1 . 2 . . . . 5 . . 1 . 2 2 Protection 19 | . 1 . 1 1 7 3 . . . . . . . . 1 . . . . . . . . . 2 3 Artifact . | . . . . . . . . . . . . . . . . . . . . . . . . . . . Weapon 42 | 3 4 . 6 1 5 4 . . . . 4 . 1 . 2 . . . . 3 . . 2 . 4 3 Energy Gun 5 | 2 3 . . . . . . . . . . . . . . . . . . . . . . . . . Energy Cannon 1 | . . . 1 . . . . . . . . . . . . . . . . . . . . . . . Ballistic Gun 7 | 1 1 . 2 . 1 . . . . . . . . . . . . . . . . . . . . 2 Ballistic Cannon . | . . . . . . . . . . . . . . . . . . . . . . . . . . . Launcher 12 | . . . 1 1 2 2 . . . . 2 . . . 1 . . . . 1 . . . . 2 . Special Weapon 1 | . . . . . . . . . . . . . . . . . . . . . . . 1 . . . Impact Weapon 5 | . . . 1 . 2 1 . . . . 1 . . . . . . . . . . . . . . . Slashing Weapon 3 | . . . 1 . . . . . . . . . . . 1 . . . . 1 . . . . . . Piercing Weapon 5 | . . . . . . . . . . . 1 . 1 . . . . . . . . . 1 . 1 1 Special Melee Weapon 3 | . . . . . . 1 . . . . . . . . . . . . . 1 . . . . 1 . Unidentified Prototypes 29 | . . . 2 . . 1 1 . . 2 3 . . . 2 . . 2 . 1 1 . 8 . 2 4 Corrupted Parts 4 | . . . 1 . 2 1 . . . . . . . . . . . . . . . . . . . . System Corruption 16 | . . . 2 . 10 4 . . . . . . . . . . . . . . . . . . . . Parts Lost 88 | . 8 . 7 1 17 7 . . . 3 3 . . . 1 . 2 . . 4 . . . . 15 20 Power 8 | . 2 . 1 . 1 1 . . . . 1 . . . . . . . . . . . . . 1 1 Propulsion 29 | . 1 . . . 8 3 . . . 3 1 . . . . . 2 . . . . . . . 5 6 Utility 29 | . . . 2 1 5 2 . . . . . . . . 1 . . . . 3 . . . . 7 8 Weapon 22 | . 5 . 4 . 3 1 . . . . 1 . . . . . . . . 1 . . . . 2 5 Highest Loss Streak 10 | . 3 . 3 1 10 4 . . . 1 2 . . . 1 . 1 . . 2 . . . . 8 10 To Critical Strikes . | . . . . . . . . . . . . . . . . . . . . . . . . . . . Average Backups 10 | 1 9 14 13 12 14 14 9 9 9 8 9 10 9 10 9 8 8 7 8 8 7 7 7 7 8 7 Power . | . . 1 . . . . 1 1 1 1 1 1 1 1 1 1 1 1 1 . . . . . . . Propulsion 2 | . 1 3 2 3 2 3 3 3 3 2 . 1 1 1 1 2 . . . 2 2 2 2 2 . . Utility 5 | . 2 6 6 7 9 7 3 3 3 3 5 6 5 6 4 3 3 3 3 2 2 2 2 2 2 3 Weapon 2 | . 4 4 3 1 1 1 1 1 2 1 2 2 2 2 1 1 2 2 2 2 1 2 2 2 3 1 Tool/Special . | . . . . . . . . . . . . . . . . . . . . . . . . . . . Unused Backups 23 | . . . 5 . 4 3 . . . . 4 . . . 2 . . 1 . 1 . . . . 1 2 Power 4 | . . . . . 1 1 . . . . . . . . 2 . . . . . . . . . . . Propulsion 3 | . . . 2 . . . . . . . . . . . . . . . . . . . . . 1 . Utility 9 | . . . . . 3 1 . . . . 2 . . . . . . 1 . . . . . . . 2 Weapon 6 | . . . 3 . . 1 . . . . 2 . . . . . . . . . . . . . . . Tool/Special 1 | . . . . . . . . . . . . . . . . . . . . 1 . . . . . . Average Slot Usage (%) 90 | . 96 90 95 100 82 92 99 100 100 97 95 100 100 100 97 93 93 94 93 93 91 90 91 94 77 64 Engine 3 | . 12 5 10 4 5 . . . . . 4 3 6 6 5 5 5 2 . . . . . . . . Core 1 | . . . . 6 1 6 7 7 7 6 1 2 . . . . . . . . . . . . . . Reactor 1 | . . . . . . . . . . . . . . . . . . 2 5 5 5 5 5 5 3 3 Treads 9 | . . . 30 33 21 21 . . . . . . . . . . . . . . . . . . . . Leg 4 | . 27 28 1 . 1 . . . . . . . . . . . . . . . . . . . . 2 Hover 1 | . . . . . 7 . . . . . . . . . . . . . . . . . . . . 1 Flight 10 | . . . . . . 1 30 30 30 29 25 26 26 26 26 23 22 23 23 21 20 20 20 20 17 7 Device 6 | . 8 . 2 . . 7 5 7 7 6 10 13 13 13 10 9 5 5 5 8 15 15 12 10 10 8 Storage 7 | . 12 14 11 11 8 7 7 7 7 7 6 6 6 6 5 5 5 5 5 5 5 5 5 5 4 4 Processor 7 | . . . 10 11 1 14 8 7 7 7 13 13 13 13 11 11 11 11 11 10 10 10 10 10 9 4 Hackware 13 | . . . . . 2 10 23 23 23 23 20 20 20 20 22 23 23 23 23 29 25 25 26 30 23 20 Protection 4 | . 5 14 6 11 14 3 . . . . . . . . . . 5 5 5 1 . . . . . 1 Energy Gun 3 | . 14 28 8 . . . . . . . . . . . . . . . . . . . . . . . Ballistic Gun 1 | . 13 . 3 . 1 . . . . . . . . . . . . . . . . . . . . . Launcher 2 | . . . . 5 4 5 . . . 1 . . . . . . . . . . . . 1 5 1 . Impact Weapon 4 | . . . 2 11 8 6 6 7 7 7 6 6 6 6 4 4 5 5 4 1 . . . . . . Piercing Weapon 1 | . . . . . . . . . . . 2 6 6 5 4 5 5 5 4 4 . . . . . 5 Special Melee Weapon 1 | . . . . . . . 6 6 7 3 1 . . . . . . . . 3 4 5 5 4 1 . Peak Build Rating 146 | 6 9 9 18 16 33 44 49 49 47 51 75 75 75 72 92 90 88 88 91 112 112 107 124 120 141 146 Average Rating 51 | 4 7 8 14 14 23 37 45 47 47 46 62 74 73 71 83 88 86 86 88 105 107 107 112 119 111 97 On Entrance 63 | . 6 8 9 14 15 31 42 47 47 47 44 75 74 71 71 89 88 85 88 88 103 107 107 120 120 117 Naked Turns . | . . . . . . . . . . . . . . . . . . . . . . . . . . . Heaviest Build 71 | 7 29 27 35 33 53 43 20 26 20 26 26 24 22 21 36 33 31 31 36 36 33 33 35 35 46 71 Greatest Support 88 | 20 20 20 60 60 88 88 21 21 21 21 32 25 25 25 34 34 34 33 33 35 34 34 35 35 44 78 Greatest Overweight (x) 15 | . 2 1 1 . 15 8 . 1 . 1 1 . . . 1 . 1 . 1 1 . . . . 1 7 Average Overweight (x) . | . . 1 . . . . . . . . . . . . . . . . . . . . . . . . Largest Inventory Capacity 15 | 5 15 15 15 15 15 15 10 10 10 10 10 10 10 10 10 10 10 10 10 10 10 10 10 10 10 10 Average Capacity 12 | 5 14 15 15 15 14 14 10 10 10 10 10 10 10 10 10 10 10 10 10 10 10 10 10 10 10 10 Most Carried 15 | 3 15 15 15 15 15 15 10 9 9 10 10 10 10 10 10 10 10 10 10 10 10 9 10 10 10 10 Average Carried 11 | 1 9 14 13 12 14 14 9 9 9 8 9 10 9 9 9 9 8 8 8 9 8 9 9 9 8 8 Final Capacity 15 | 5 15 15 15 15 15 10 10 10 10 10 10 10 10 10 10 10 10 10 10 10 10 10 10 10 10 10 Final Carried 15 | 3 14 15 12 15 15 9 9 9 9 8 10 10 10 10 10 10 8 9 9 10 9 9 10 10 8 5 Class Distribution -------------------- 33% | Mutant 16% | Hacker-Scout 10% | Scavenger-Mutant 8% | Wizard-Scout 6% | Hacker-Sprinter 6% | Wizard-Ninja 5% | Hacker-Assassin 3% | Assassin 3% | Wizard-Mutant Dominant Class ---------------- Mutant | -10/Materials Mutant | -10/Mines Mutant | -9/Materials Mutant | -9/Mines Mutant | -8/Materials Hacker-Assassin | -7/Factory Hacker-Sprinter | -7/Lower Caves Hacker-Sprinter | -7/Lower Caves Hacker-Sprinter | -7/Data Miner Hacker-Sprinter | -6/Proximity Caves Hacker-Scout | -6/Factory Hacker-Scout | -6/Lower Caves Hacker-Scout | -6/Zion Hacker-Scout | -5/Proximity Caves Hacker-Scout | -5/Factory Hacker-Ninja | -5/Upper Caves Hacker-Scout | -5/Upper Caves Hacker-Scout | -5/Zhirov Hacker-Scout | -4/Proximity Caves Wizard-Ninja | -4/Factory Wizard-Ninja | -4/Upper Caves Wizard-Ninja | -4/Upper Caves Wizard-Ninja | -4/Warlord Wizard-Scout | -3/Proximity Caves Wizard-Scout | -3/Research Wizard-Mutant | -3/Testing Resources | -11 -10 -10 -9 -9 -8 -7 -7 -7 -7 -6 -6 -6 -6 -5 -5 -5 -5 -5 -4 -4 -4 -4 -4 -3 -3 -3 ----------- Run | Yrd Mat Min Mat Min Mat Fac Low Low Dat Pro Fac Low Zio Pro Fac Upp Upp Zhi Pro Fac Upp Upp War Pro Res Tes Matter Collected 6834 | 277 170 119 288 203 859 679 298 40 . 237 473 177 . 24 456 20 88 73 128 644 2 131 130 160 697 461 Remotely . | . . . . . . . . . . . . . . . . . . . . . . . . . . . Salvage Created 10285 | 72 824 89 1159 58 1502 1298 202 458 . 316 685 314 . 58 261 160 75 282 83 627 17 . . 67 728 950 Parts 478 | 6 41 2 71 2 66 61 4 5 . 5 27 6 . 7 12 3 2 1 . 28 5 . . 9 52 63 Haulers Intercepted 22 | . 2 . 5 . 5 2 . . . . 2 . . . 2 . . . . 3 . . . . 1 . Recyclers Shooed 6 | . . . . . 1 1 . . . . . . . . . . . . . 3 . . . . 1 . Parts Field Recycled . | . . . . . . . . . . . . . . . . . . . . . . . . . . . Retrieved Matter . | . . . . . . . . . . . . . . . . . . . . . . . . . . . Parts Self-Destructed 29 | . . . . . . . 8 2 . 5 . . . 5 . 1 1 . . . 2 . . 5 . . Prevented 3 | . . . . . . . . . . . . . . . . . 2 1 . . . . . . . . Kills | -11 -10 -10 -9 -9 -8 -7 -7 -7 -7 -6 -6 -6 -6 -5 -5 -5 -5 -5 -4 -4 -4 -4 -4 -3 -3 -3 ------- Run | Yrd Mat Min Mat Min Mat Fac Low Low Dat Pro Fac Low Zio Pro Fac Upp Upp Zhi Pro Fac Upp Upp War Pro Res Tes Combat Hostiles Destroyed 200 | 1 17 2 25 6 37 25 6 2 . 8 8 1 . 5 2 5 1 . 3 2 4 . . 7 18 15 Melee 32 | . . . 3 3 4 7 . . . 1 . 1 . . . . . . . 1 . . . . 4 8 Guns 34 | 1 17 1 15 . . . . . . . . . . . . . . . . . . . . . . . Cannons 3 | . . . 2 . 1 . . . . . . . . . . . . . . . . . . . . . AOE 108 | . . . 4 3 22 9 5 2 . 7 8 . . 5 2 5 . . 3 1 4 . . 7 14 7 Classes Destroyed 21 | 2 5 . 4 1 2 2 . . . 2 . 1 . . . . . . . . . . . . 1 1 Worker 21 | . 1 . 2 1 4 3 . . . . 5 . . . 3 . . . . . . . . . 1 1 Builder 22 | . . . 3 1 3 6 . . . . . . . . . . . . . 3 . . . . 6 . Tunneler 3 | 1 . . . . . . . . . . 1 . . . 1 . . . . . . . . . . . Hauler 22 | . 2 . 5 . 5 2 . . . . 2 . . . 2 . . . . 3 . . . . 1 . Recycler 3 | . . . 1 . . 1 . . . . 1 . . . . . . . . . . . . . . . Mechanic 2 | . . . . . 1 . . . . . 1 . . . . . . . . . . . . . . . Operator 7 | . 2 . . . . 2 . . . . . . . . . . . . . 2 . . . . . 1 Drone 3 | . . . . . . . . . . 1 . . . . . . . . . . . . . 2 . . Watcher 17 | . 2 . 2 . 3 1 . . . . 2 . . . 1 . . . . 3 . . . . 2 1 Swarmer 61 | . 3 . 10 . 3 . . 2 . 7 8 . . 5 . 5 . . . 1 4 . . 5 5 3 Cutter 2 | . . . . . . . . . . . . . . . . . . . . . . . . . 2 . Grunt 80 | 1 14 2 8 . 24 16 4 . . . . . . . 2 . . . 1 . . . . . 5 3 Brawler 2 | . . . . . . 1 . . . . . 1 . . . . . . . . . . . . . . Duelist 6 | . . . 1 . 2 . . . . . . 3 . . . . . . . . . . . . . . Researcher 5 | . . . . . . . . . . . . . . . . . . . . . . . . . . 5 Sentry 16 | . . . 6 . 6 2 . . . . . . . . . . 1 . . 1 . . . . . . Hunter 18 | . . . . . 2 1 2 . . . . . . . . . . . 2 . . . . . 4 7 Programmer 9 | . . . . . . 5 . . . . . . . . . . . . . . . . . . 2 2 Samaritan 1 | . . . . . . . . . . 1 . . . . . . . . . . . . . . . . Assembled 6 | . . . . 6 . . . . . . . . . . . . . . . . . . . . . . Mutant 1 | . . . . . . . . . . . . 1 . . . . . . . . . . . . . . Best Kill Streak 11 | 1 3 2 8 3 7 9 6 1 . 4 11 1 . 5 4 5 1 . 2 2 4 . . 5 6 3 Combat Bots Only 7 | 1 2 2 5 2 7 4 5 1 . 4 4 1 . 5 1 5 1 . 2 1 4 . . 5 5 3 Max Kills in Single Turn 6 | 1 2 1 2 1 3 3 3 1 . 4 6 1 . 5 4 2 1 . 1 1 2 . . 2 3 2 Gunslinging . | . . . . . . . . . . . . . . . . . . . . . . . . . . . Exploded 5 | . . . 2 1 2 2 3 1 . 4 4 . . 5 1 2 . . 1 1 2 . . 2 3 2 Melee 1 | . . . 1 1 1 1 . . . 1 . 1 . . . . . . . 1 . . . . 1 1 Uniques/NPCs Destroyed . | . . . . . . . . . . . . . . . . . . . . . . . . . . . Combat | -11 -10 -10 -9 -9 -8 -7 -7 -7 -7 -6 -6 -6 -6 -5 -5 -5 -5 -5 -4 -4 -4 -4 -4 -3 -3 -3 -------- Run | Yrd Mat Min Mat Min Mat Fac Low Low Dat Pro Fac Low Zio Pro Fac Upp Upp Zhi Pro Fac Upp Upp War Pro Res Tes Hostile Shots Fired 1291 | 3 92 16 142 31 225 223 14 . . 33 35 6 . 3 18 33 8 . 6 40 7 4 1 4 133 214 Missed 430 | . 19 4 35 8 43 90 6 . . 18 22 2 . 2 6 23 3 . 1 14 1 2 . 1 63 67 Hits 861 | 3 73 12 107 23 182 133 8 . . 15 13 4 . 1 12 10 5 . 5 26 6 2 1 3 70 147 Melee 17 | . . . 8 1 2 . . . . . . . . . . . . . . . . . . . 6 . Projectile 844 | 3 73 12 99 22 180 133 8 . . 15 13 4 . 1 12 10 5 . 5 26 6 2 1 3 64 147 AOE 3 | . . . . . . . . . . . . . . . . . . . . . . . . . 3 . Critical Strikes 38 | . 1 . 4 . 10 8 . . . . . . . . . . . . . 1 . . . . 6 8 Actively Blocked 3 | . . . 1 . 1 . . . . . . . . . . . . . . . . . . . 1 . Part Disruptions 2 | . . . . . . . . . . . . 1 . . . 1 . . . . . . . . . . Damage Taken 14615 | 34 872 179 1442 448 3065 1830 150 . . 323 193 55 . 12 182 101 138 . 100 518 97 50 17 122 1786 2901 Core 2918 | 22 150 56 195 52 528 153 57 . . 81 50 44 . . 51 . . . 34 25 17 25 17 62 408 891 Absorbed by Shields . | . . . . . . . . . . . . . . . . . . . . . . . . . . . Redirected to Shielding 318 | . 22 21 53 12 98 5 . . . . . . . . . . . . . . . . . . 107 . Regen/Repaired (Parts) 1438 | . . . 192 . 257 519 . . . . 115 . . . 51 . . . . . . . 42 . 136 126 Core Remaining (%) 58 | 91 . 8 . 38 4 . . . . 58 . . . 88 . . . . 91 . . . . 87 . . Volleys Fired 387 | 7 100 10 84 13 56 27 5 2 . 7 7 . . 1 3 3 . . 7 6 3 . . 6 25 15 Largest 2 | 2 2 2 2 1 1 1 1 1 . 1 1 . . 1 1 1 . . 1 1 1 . . 1 1 2 Hottest 118 | 60 90 90 118 33 36 45 45 45 . 45 45 . . 43 46 46 . . 46 46 46 . . 46 52 55 Shots Fired 579 | 14 195 20 160 13 56 27 5 2 . 7 7 . . 1 3 3 . . 7 6 3 . . 6 25 19 Gun 362 | 14 195 20 124 . 1 . . . . . . . . . . . . . . . . . . . . 8 Cannon 33 | . . . 33 . . . . . . . . . . . . . . . . . . . . . . . Launcher 184 | . . . 3 13 55 27 5 2 . 7 7 . . 1 3 3 . . 7 6 3 . . 6 25 11 Special . | . . . . . . . . . . . . . . . . . . . . . . . . . . . Kinetic 145 | 7 91 . 38 . 1 . . . . . . . . . . . . . . . . . . . . 8 Thermal 222 | . 83 20 119 . . . . . . . . . . . . . . . . . . . . . . . Explosive 149 | . . . 3 13 36 11 5 2 . 7 7 . . 1 3 3 . . 7 6 3 . . 6 25 11 Electromagnetic 63 | 7 21 . . . 19 16 . . . . . . . . . . . . . . . . . . . . Robot Hit Streak 18 | 11 14 11 18 2 7 4 7 3 . 2 3 . . . . . . . 2 1 . . . . 6 4 Robot Miss Streak 5 | 1 4 2 5 4 3 3 3 1 . 4 4 . . 1 . . . . 3 . . . . . 2 3 Penetration Max . | . . . . . . . . . . . . . . . . . . . . . . . . . . . Secondary Targets 1 | . . 1 . . . . . . . . . . . . . . . . . . . . . . . . Max Gunslinging Chain 1 | . . 1 . . . . . . . . . . . . . . . . . . . . . . . . Shots Hit Robots 602 | 11 117 15 118 10 77 59 8 12 1 6 16 12 . . 4 3 2 7 1 46 . . 2 . 28 47 Core Hits 477 | 4 50 4 53 10 74 55 14 5 . 14 27 3 . 8 9 7 . 2 23 16 4 . . 9 54 32 Critical Kills 8 | . 1 . 1 2 . 3 . . . . . . . . . . . 1 . . . . . . . . Critical Parts Destroyed 30 | . . . 2 1 11 9 . 1 . 1 3 . . . 1 . . 1 . . . . . . . . Critical Strikes 54 | . 3 3 6 3 11 12 . 1 . 1 3 . . . 1 . . 2 . 4 . . . . 1 3 Burn 8 | . 2 3 3 . . . . . . . . . . . . . . . . . . . . . . . Meltdown 1 | . . . 1 . . . . . . . . . . . . . . . . . . . . . . . Destroy 1 | . 1 . . . . . . . . . . . . . . . . . . . . . . . . . Smash 37 | . . . 2 3 11 12 . 1 . 1 3 . . . 1 . . 2 . 1 . . . . . . Impale 3 | . . . . . . . . . . . . . . . . . . . . 3 . . . . . . Sunder 4 | . . . . . . . . . . . . . . . . . . . . . . . . . 1 3 Melee Attacks 530 | . . . 14 12 72 62 3 11 1 5 42 13 . . 32 9 5 8 . 80 2 1 2 1 54 101 Impact 268 | . . . 8 11 70 60 2 11 . 5 31 11 . . 26 5 4 6 . 18 . . . . . . Slashing 53 | . . . 6 1 2 . . . . . . . . . . . . . . 2 2 1 . 1 38 . Piercing 126 | . . . . . . . . . . . 5 2 . . 6 4 1 2 . 54 . . . . . 52 Entropic 58 | . . . . . . . . . . . . . . . . . . . . . . . . . 11 47 Sneak Attacks 87 | . . . 4 . 13 11 1 . 1 2 10 8 . . 3 . . . . 17 . . 2 . 10 5 Combat Hostiles 7 | . . . . . . 4 . . . 1 . . . . . . . . . 1 . . . . . 1 Follow-up Attacks 11 | . . . 1 . 2 . . . . . . 2 . . . 1 . 1 . 1 . . . . . 3 Damage Inflicted 36186 | 115 1274 177 2357 608 6430 3982 825 1126 . 800 1573 902 . 268 1257 822 56 577 634 1794 535 . . 728 4644 4702 Guns 2684 | 115 1267 177 970 . 12 . . . . . . . . . . . . . . . . . . . . 143 Cannons 418 | . . . 418 . . . . . . . . . . . . . . . . . . . . . . . Explosions 17071 | . . . 349 280 3776 1830 630 104 . 429 994 . . 268 940 614 . . 634 103 535 . . 728 3527 1330 Melee 15963 | . . . 582 328 2642 2147 195 1022 . 371 579 902 . . 317 208 56 577 . 1691 . . . . 1117 3229 Ramming 50 | . 7 . 38 . . 5 . . . . . . . . . . . . . . . . . . . . Kinetic 805 | 36 413 . 201 . 12 . . . . . . . . . . . . . . . . . . . . 143 Thermal 3120 | . 713 177 1187 . 179 106 . . . . 108 . . . 650 . . . . . . . . . . . Explosive 14960 | . . . 349 280 2861 1415 630 104 . 429 886 . . 268 290 614 . . 634 103 535 . . 728 3504 1330 Electromagnetic 1288 | 79 141 . . . 736 309 . . . . . . . . . . . . . . . . . . 23 . Impact 9971 | . . . 365 328 2594 2147 195 1022 . 371 579 819 . . 317 162 56 511 . 505 . . . . . . Slashing 1063 | . . . 217 . 48 . . . . . . . . . . . . . . . . . . . 798 . Piercing 2341 | . . . . . . . . . . . . 83 . . . 46 . 66 . 1186 . . . . . 960 Entropic 2588 | . . . . . . . . . . . . . . . . . . . . . . . . . 319 2269 Highest Corruption 11 | . . . 4 4 10 6 1 . . . . . . . 5 5 5 5 5 . . . . . . 11 Average Corruption 4 | . . . 2 4 9 1 1 . . . . . . . 5 5 5 5 5 . . . . . . 10 Corruption Purged 7 | . . . . . . 6 1 . . . . . . . . . . . . . . . . . . . Corruption Blocked 2 | . . . . . . . . . . . . . . . . . . . . . . . . . . 2 Effects 115 | . . . 3 13 12 21 1 . . . . . . . 13 7 11 1 10 . . . . . . 23 Message Errors 31 | . . . . 7 4 8 . . . . . . . . 2 2 2 . . . . . . . . 6 Matter Fused 24 | . . . . . 1 9 . . . . . . . . 3 1 2 1 3 . . . . . . 4 Heat Flow Errors 17 | . . . 1 4 2 1 . . . . . . . . 2 1 1 . 3 . . . . . . 2 Energy Discharges 18 | . . . 1 2 3 1 1 . . . . . . . 4 . 3 . 2 . . . . . . 1 Parts Rejected 3 | . . . . . . 1 . . . . . . . . . . 1 . . . . . . . . 1 Data Loss (minor) 17 | . . . 1 . 1 . . . . . . . . . 1 3 2 . 2 . . . . . . 7 Data Loss (major) 1 | . . . . . 1 . . . . . . . . . . . . . . . . . . . . . Misfires 1 | . . . . . . . . . . . . . . . . . . . . . . . . . . 1 Alerts 3 | . . . . . . 1 . . . . . . . . 1 . . . . . . . . . . 1 Overload Shots . | . . . . . . . . . . . . . . . . . . . . . . . . . . . Overflow Damage 6262 | . . . 212 79 1090 787 111 705 . 280 409 356 . 3 295 163 10 240 . 241 10 . . 73 457 741 Projectiles 42 | . . . 3 . . . . . . . 7 32 . . . . . . . . . . . . . . Explosions 679 | . . . 14 4 84 54 . 11 . 23 25 . . 3 89 100 . . . . 10 . . 73 149 40 Melee 5541 | . . . 195 75 1006 733 111 694 . 257 377 324 . . 206 63 10 240 . 241 . . . . 308 701 Knockbacks 24 | . . . . 2 8 7 . . . . 3 2 . . . . . . . 2 . . . . . . Impact 21 | . . . . 2 7 7 . . . . 2 1 . . . . . . . 2 . . . . . . Kinetic . | . . . . . . . . . . . . . . . . . . . . . . . . . . . Secondary 3 | . . . . . 1 . . . . . 1 1 . . . . . . . . . . . . . . Self-Inflicted Damage 1009 | . . . 74 78 234 259 18 . . 89 15 . . . . . . . . 24 12 . . 49 77 80 Shots 40 | . . . 3 2 11 11 1 . . 4 1 . . . . . . . . 1 1 . . 2 1 2 Rammed 7 | . . . 4 . . 3 . . . . . . . . . . . . . . . . . . . . Targets Rammed 11 | . 3 . 5 . . 3 . . . . . . . . . . . . . . . . . . . . Kicked 3 | . 3 . . . . . . . . . . . . . . . . . . . . . . . . . Crushed 1 | . . . 1 . . . . . . . . . . . . . . . . . . . . . . . Highest Temperature 254 | 58 81 249 181 253 116 155 8 . . 4 12 . . . 208 254 197 . 249 . . . . . 229 213 Average Temperature 53 | 34 20 140 42 112 23 61 3 . . 3 8 . . . 106 103 112 . 117 . . . . . 99 95 Received Heat Transfer 3413 | 18 423 99 366 . 1206 684 54 . . 18 20 60 . . 18 . 27 . 18 90 . 18 . 9 195 90 Siege Activations . | . . . . . . . . . . . . . . . . . . . . . . . . . . . Martial Activations . | . . . . . . . . . . . . . . . . . . . . . . . . . . . Shielding Activations . | . . . . . . . . . . . . . . . . . . . . . . . . . . . Robots Disrupted . | . . . . . . . . . . . . . . . . . . . . . . . . . . . Combat Hostiles . | . . . . . . . . . . . . . . . . . . . . . . . . . . . Robots Corrupted 43 | . . . . . 14 14 1 . . 3 5 2 . . 1 . 1 1 . 1 . . . . . . Combat Hostiles 23 | . . . . . 10 9 1 . . 1 . . . . . . 1 1 . . . . . . . . Parts Fried 54 | . . . 3 . 18 10 2 1 . 5 5 5 . . 2 . 1 1 . 1 . . . . . . Impact Corruptions 148 | . . . 4 3 31 29 7 19 . 9 13 9 . . 3 5 1 12 . 3 . . . . . . Robots Melted 2 | . . 1 1 . . . . . . . . . . . . . . . . . . . . . . . Combat Hostiles 2 | . . 1 1 . . . . . . . . . . . . . . . . . . . . . . . Parts Melted 11 | . 1 3 7 . . . . . . . . . . . . . . . . . . . . . . . Heat Transferred 6749 | . 2009 693 3147 . 200 100 . . . . 100 . . . 500 . . . . . . . . . . . Parts Sabotaged . | . . . . . . . . . . . . . . . . . . . . . . . . . . . Parts Stolen . | . . . . . . . . . . . . . . . . . . . . . . . . . . . Parts Stripped . | . . . . . . . . . . . . . . . . . . . . . . . . . . . Power Chain Reactions 2 | . . . . . 2 . . . . . . . . . . . . . . . . . . . . . Alert | -11 -10 -10 -9 -9 -8 -7 -7 -7 -7 -6 -6 -6 -6 -5 -5 -5 -5 -5 -4 -4 -4 -4 -4 -3 -3 -3 ------- Run | Yrd Mat Min Mat Min Mat Fac Low Low Dat Pro Fac Low Zio Pro Fac Upp Upp Zhi Pro Fac Upp Upp War Pro Res Tes Maximum Alert Level 3 | . 1 . 1 . 2 2 . . . . 3 . . . 1 . . . . . . . . . 2 1 Low Security (%) 60 | 100 96 100 74 100 40 37 . . . . . . . . 55 . . . . 100 . . . . 27 84 Level 1 22 | . 3 . 25 . 45 34 . . . . 4 . . . 44 . . . . . . . . . 24 15 Level 2 16 | . . . . . 13 28 . . . . 93 . . . . . . . . . . . . . 47 . Level 3 . | . . . . . . . . . . . 2 . . . . . . . . . . . . . . . Level 4 . | . . . . . . . . . . . . . . . . . . . . . . . . . . . Level 5 . | . . . . . . . . . . . . . . . . . . . . . . . . . . . High Security . | . . . . . . . . . . . . . . . . . . . . . . . . . . . Max Security . | . . . . . . . . . . . . . . . . . . . . . . . . . . . Peak Influence 719 | 20 208 61 253 92 665 580 . . . . 719 . . . 374 . . . . 72 . . . . 525 351 Initial 489 | . 3 21 . 92 . 300 . . . . 489 . . . 50 . . . . 13 . . . . 60 171 Average 191 | 4 95 7 93 24 256 303 . . . . 513 . . . 145 . . . . 12 . . . . 300 96 Influence Increases 9828 | 25 565 50 772 73 1392 1060 155 40 . 205 1163 . . 110 822 125 95 15 70 499 90 . . 135 1287 1080 Destroy 0b10 Robot/C 3980 | 20 340 40 500 . 740 500 120 40 . 140 160 . . 100 40 100 20 . 60 80 80 . . 100 360 440 Destroy 0b10 Robot/NC 540 | 5 35 . 65 10 80 75 5 . . 15 65 . . . 35 . . 15 . 55 . . . 10 50 20 Destroy Leader 868 | . 88 10 114 . 206 136 30 . . 20 28 . . 10 6 10 . . 10 42 10 . . 10 66 72 Allied During Kill 60 | . . . . . . . . . . . . . . . . . . . . 15 . . . . . 45 Successful Hack 178 | . 12 . 11 . 11 27 . . . . 44 . . . 51 . . . . 4 . . . . 10 8 Select Force Hacks 180 | . 60 . 30 . 30 . . . . . 30 . . . 30 . . . . . . . . . . . Disable Machine 705 | . . . . . 90 75 . . . . 165 . . . 180 . . . . 30 . . . . 45 120 Anti-Garrison Action 200 | . . . . . . . . . . . . . . . 200 . . . . . . . . . . . Destroy Structure 1497 | . . . 22 63 160 82 . . . . 116 . . . 160 . . . . 138 . . . . 486 270 Advance Influence 450 | . . . . . . . . . . . 450 . . . . . . . . . . . . . . . Partial Spotted 210 | . . . . . 15 30 . . . . 45 . . . . . . . . 30 . . . . 60 30 Lose Combat Pursuer 960 | . 30 . 30 . 60 135 . . . 30 60 . . . 120 15 75 . . 105 . . . 15 210 75 Influence Decreases 9519 | 20 516 104 534 311 731 1409 236 145 126 142 784 244 198 30 737 190 128 77 53 465 86 60 . 45 1072 1076 Entered New Map 1604 | . 2 33 . 146 . 361 116 45 126 . 24 164 198 . 30 62 19 67 5 9 21 12 . . 30 134 Time Decay 5027 | 20 434 71 464 155 561 668 120 100 . 122 380 80 . 30 310 118 99 10 48 279 65 48 . 45 422 378 Lost Part 814 | . 80 . 70 10 170 70 . . . 20 30 . . . 10 . 10 . . 10 . . . . 150 184 Lost Ally 280 | . . . . . . 10 . . . . 50 . . . 10 10 . . . 100 . . . . 20 80 Purge Threat 1794 | . . . . . . 300 . . . . 300 . . . 377 . . . . 67 . . . . 450 300 Squads Dispatched 78 | . 4 . 4 . 14 14 . . . . 11 . . . 7 . . . . 10 . . . . 6 8 Investigation 25 | . 2 . 1 . 5 4 . . . . 5 . . . 2 . . . . 5 . . . . . 1 Extermination 19 | . . . . . . 6 . . . . 3 . . . 2 . . . . 2 . . . . 3 3 Reinforcement 30 | . 2 . 3 . 6 3 . . . . 3 . . . 3 . . . . 3 . . . . 3 4 Assault 1 | . . . . . . 1 . . . . . . . . . . . . . . . . . . . . Garrison 3 | . . . . . 3 . . . . . . . . . . . . . . . . . . . . . Intercept . | . . . . . . . . . . . . . . . . . . . . . . . . . . . Searches Triggered . | . . . . . . . . . . . . . . . . . . . . . . . . . . . Construction Impeded 11 | . . . 1 . 3 2 . . . . 1 . . . . . . . . 1 . . . . 2 1 Haulers Reinforced 3 | . . . . . . . . . . . . . . . 2 . . . . 1 . . . . . . Active Scanning Responses . | . . . . . . . . . . . . . . . . . . . . . . . . . . . Cargo Convoy Interrupts . | . . . . . . . . . . . . . . . . . . . . . . . . . . . Stealth | -11 -10 -10 -9 -9 -8 -7 -7 -7 -7 -6 -6 -6 -6 -5 -5 -5 -5 -5 -4 -4 -4 -4 -4 -3 -3 -3 --------- Run | Yrd Mat Min Mat Min Mat Fac Low Low Dat Pro Fac Low Zio Pro Fac Upp Upp Zhi Pro Fac Upp Upp War Pro Res Tes Distress Signals 28 | . 1 . 5 . 2 2 . . . 2 5 . . . 2 . . . 1 1 . . . . 6 1 Communications Jammed 35 | . . . . . . . . . . . . . . . . . . . . 35 . . . . . . Distress Signals 35 | . . . . . . . . . . . . . . . . . . . . 35 . . . . . . Times Spotted 371 | 1 42 2 42 6 61 34 6 . . 15 20 1 . 5 18 5 5 . 3 22 4 1 3 4 41 30 Peak Tracking Total 14 | 1 5 2 6 4 6 5 5 . . 10 5 1 . 5 5 5 5 . 2 5 4 1 6 4 14 9 Tactical Retreats 43 | . 1 . 2 2 2 6 . . . 2 4 . . . 6 1 1 . . 4 . . . 1 8 3 Traps | -11 -10 -10 -9 -9 -8 -7 -7 -7 -7 -6 -6 -6 -6 -5 -5 -5 -5 -5 -4 -4 -4 -4 -4 -3 -3 -3 ------- Run | Yrd Mat Min Mat Min Mat Fac Low Low Dat Pro Fac Low Zio Pro Fac Upp Upp Zhi Pro Fac Upp Upp War Pro Res Tes Traps Triggered 9 | . 1 . 1 . . 3 . . . . 2 . . . . 1 . . . 1 . . . . . . Indirectly . | . . . . . . . . . . . . . . . . . . . . . . . . . . . Trap Hack Attempts . | . . . . . . . . . . . . . . . . . . . . . . . . . . . Triggered . | . . . . . . . . . . . . . . . . . . . . . . . . . . . Disarmed . | . . . . . . . . . . . . . . . . . . . . . . . . . . . Reprogrammed 6 | . . . . . . . . . . . . . . . . . . . . . . . . . 6 . Reused . | . . . . . . . . . . . . . . . . . . . . . . . . . . . Traps Extracted . | . . . . . . . . . . . . . . . . . . . . . . . . . . . Installed . | . . . . . . . . . . . . . . . . . . . . . . . . . . . Triggered . | . . . . . . . . . . . . . . . . . . . . . . . . . . . Machines | -11 -10 -10 -9 -9 -8 -7 -7 -7 -7 -6 -6 -6 -6 -5 -5 -5 -5 -5 -4 -4 -4 -4 -4 -3 -3 -3 ---------- Run | Yrd Mat Min Mat Min Mat Fac Low Low Dat Pro Fac Low Zio Pro Fac Upp Upp Zhi Pro Fac Upp Upp War Pro Res Tes Machines Disabled 52 | . . . . . 6 5 . . . . 11 1 . . 12 1 . . . 2 . . . . 3 11 Max in Single Turn 10 | . . . . . 1 2 . . . . 9 1 . . 10 1 . . . 1 . . . . 1 3 Garrison Access 4 | . . . . . . . . . . . 1 . . . 1 . . . . . . . . . 1 1 Machines Repaired . | . . . . . . . . . . . . . . . . . . . . . . . . . . . Machines Dismantled . | . . . . . . . . . . . . . . . . . . . . . . . . . . . Machines Sabotaged . | . . . . . . . . . . . . . . . . . . . . . . . . . . . Overloaded Fab Kills . | . . . . . . . . . . . . . . . . . . . . . . . . . . . Hacking | -11 -10 -10 -9 -9 -8 -7 -7 -7 -7 -6 -6 -6 -6 -5 -5 -5 -5 -5 -4 -4 -4 -4 -4 -3 -3 -3 --------- Run | Yrd Mat Min Mat Min Mat Fac Low Low Dat Pro Fac Low Zio Pro Fac Upp Upp Zhi Pro Fac Upp Upp War Pro Res Tes Machines Accessed 109 | . 7 . 4 . 8 12 . . 4 . 16 2 . . 16 . . 5 . 11 . . 6 . 10 8 Terminals 50 | . 4 . 1 . 5 6 . . . . 7 . . . 11 . . . . 6 . . . . 6 4 Fabricators 10 | . . . . . . 2 . . . . 3 . . . . . . . . 4 . . . . . 1 Repair Stations 11 | . 1 . 1 . 1 3 . . . . 1 . . . 2 . . . . . . . . . 1 1 Recycling Units 7 | . 2 . 1 . 1 . . . . . 1 . . . 1 . . . . . . . . . 1 . Scanalyzers 7 | . . . 1 . . . . . . . 2 . . . 1 . . . . 1 . . . . 1 1 Garrison Access 7 | . . . . . 1 1 . . . . 2 . . . 1 . . . . . . . . . 1 1 Total Hacks 411 | . 14 . 18 . 29 38 . . 28 . 59 6 . . 64 . . 18 . 48 . . 13 . 39 37 Successful 273 | . 5 . 14 . 10 19 . . 28 . 34 6 . . 45 . . 18 . 32 . . 13 . 30 19 Failed 138 | . 9 . 4 . 19 19 . . . . 25 . . . 19 . . . . 16 . . . . 9 18 Catastrophic 21 | . . . . . 5 5 . . . . 4 . . . 2 . . . . . . . . . 4 1 Database Lockouts . | . . . . . . . . . . . . . . . . . . . . . . . . . . . Manual 197 | . 10 . 3 . 16 16 . . . . 40 . 1 . 43 1 . . . 29 . . 2 . 22 14 Terminals 209 | . 8 . 2 . 15 17 . . . . 32 . . . 49 . . . . 33 . . . . 25 28 Fabricators 33 | . . . . . . 5 . . . . 11 . . . . . . . . 11 . . . . . 6 Repair Stations 49 | . 4 . 5 . 11 14 . . . . 2 . . . 6 . . . . . . . . . 6 1 Recycling Units 13 | . 2 . 1 . 1 . . . . . 1 . . . 3 . . . . . . . . . 5 . Scanalyzers 29 | . . . 10 . . . . . . . 9 . . . 3 . . . . 4 . . . . 2 1 Garrison Access 13 | . . . . . 2 2 . . . . 4 . . . 3 . . . . . . . . . 1 1 Terminal Hacks 140 | . 2 . 1 . 1 4 . . 28 . 8 6 . . 19 . . 18 . 15 . . 13 . 12 13 Record 34 | . . . . . . . . . 11 . . 5 . . . . . 6 . . . . 11 . 1 . Part Schematic 14 | . . . . . . 1 . . 8 . . . . . 1 . . 4 . . . . . . . . Robot Schematic 6 | . . . . . . . . . 6 . . . . . . . . . . . . . . . . . Robot Analysis 5 | . 1 . . . . . . . . . . . . . . . . 4 . . . . . . . . Prototype ID Bank 8 | . . . . . . . . . 3 . . . . . . . . 4 . 1 . . . . . . Open Door 4 | . . . . . . . . . . . . 1 . . . . . . . . . . 2 . . 1 Open DSF 1 | . . . . . . . . . . . . . . . . . . . . 1 . . . . . . Level Access Points 2 | . . . . . . . . . . . 1 . . . . . . . . . . . . . . 1 Branch Access Points 8 | . 1 . 1 . 1 . . . . . 1 . . . 1 . . . . 1 . . . . 1 1 Emergency Access Points 3 | . . . . . . . . . . . . . . . 1 . . . . 2 . . . . . . Machine Index 1 | . . . . . . . . . . . . . . . . . . . . . . . . . . 1 Terminal Index 5 | . . . . . . . . . . . . . . . 2 . . . . 1 . . . . 1 1 Fabricator Index 1 | . . . . . . . . . . . 1 . . . . . . . . . . . . . . . Repair Station Index 1 | . . . . . . . . . . . 1 . . . . . . . . . . . . . . . Garrison Index 1 | . . . . . . . . . . . . . . . 1 . . . . . . . . . . . Alert Level 1 | . . . . . . . . . . . . . . . . . . . . . . . . . . 1 Unreport Threat 14 | . . . . . . 2 . . . . 2 . . . 3 . . . . 2 . . . . 3 2 Locate Traps 5 | . . . . . . . . . . . 1 . . . 2 . . . . 1 . . . . 1 . Reprogram Traps 1 | . . . . . . . . . . . . . . . . . . . . . . . . . 1 . Extermination Status 1 | . . . . . . . . . . . . . . . 1 . . . . . . . . . . . Recall Investigation 6 | . . . . . . . . . . . . . . . 2 . . . . 3 . . . . . 1 Recall Extermination 7 | . . . . . . . . . . . . . . . 2 . . . . 2 . . . . 2 1 Recall Reinforcements 6 | . . . . . . . . . . . 1 . . . 3 . . . . 1 . . . . 1 . Recall Assault 1 | . . . . . . 1 . . . . . . . . . . . . . . . . . . . . Zone Layout 3 | . . . . . . . . . . . . . . . . . . . . . . . . . 1 2 Protovariant Controls 1 | . . . . . . . . . . . . . . . . . . . . . . . . . . 1 Fabricator Hacks 18 | . . . . . . 1 . . . . 4 . . . . . . . . 10 . . . . . 3 Network Status 3 | . . . . . . 1 . . . . . . . . . . . . . 1 . . . . . 1 Load Schematic 6 | . . . . . . . . . . . 1 . . . . . . . . 4 . . . . . 1 Build 9 | . . . . . . . . . . . 3 . . . . . . . . 5 . . . . . 1 Repair Station Hacks 35 | . 1 . 4 . 8 10 . . . . 2 . . . 4 . . . . . . . . . 6 . Scan Component 18 | . 1 . 2 . 4 5 . . . . 1 . . . 2 . . . . . . . . . 3 . Repair 17 | . . . 2 . 4 5 . . . . 1 . . . 2 . . . . . . . . . 3 . Recycling Unit Hacks 5 | . . . . . . . . . . . . . . . . . . . . . . . . . 5 . Recycle Component 2 | . . . . . . . . . . . . . . . . . . . . . . . . . 2 . Process 1 | . . . . . . . . . . . . . . . . . . . . . . . . . 1 . Report Inventory 1 | . . . . . . . . . . . . . . . . . . . . . . . . . 1 . Retrieve Matter 1 | . . . . . . . . . . . . . . . . . . . . . . . . . 1 . Scanalyzer 22 | . . . 8 . . . . . . . 8 . . . 3 . . . . 1 . . . . 2 . Insert Component 11 | . . . 3 . . . . . . . 4 . . . 2 . . . . 1 . . . . 1 . Analyze 11 | . . . 5 . . . . . . . 4 . . . 1 . . . . . . . . . 1 . Garrison Access Hacks 3 | . . . . . . . . . . . 1 . . . . . . . . . . . . . 1 1 Seal Access 3 | . . . . . . . . . . . 1 . . . . . . . . . . . . . 1 1 Unauthorized Hacks 50 | . 2 . 1 . 1 4 . . . . 11 . . . 19 . . . . 6 . . . . 4 2 Terminals 32 | . . . . . . 3 . . . . 5 . . . 14 . . . . 5 . . . . 4 1 Assimilate 6 | . . . . . . 1 . . . . 1 . . . 3 . . . . . . . . . 1 . Botnet 20 | . . . . . . 2 . . . . 3 . . . 8 . . . . 3 . . . . 3 1 Operators 2 | . . . . . . . . . . . 1 . . . 1 . . . . . . . . . . . Skim 4 | . . . . . . . . . . . . . . . 2 . . . . 2 . . . . . . Fabricators 4 | . . . . . . . . . . . 3 . . . . . . . . 1 . . . . . . Report 1 | . . . . . . . . . . . 1 . . . . . . . . . . . . . . . Prioritize 3 | . . . . . . . . . . . 2 . . . . . . . . 1 . . . . . . Repair Stations 2 | . . . . . . 1 . . . . . . . . 1 . . . . . . . . . . . Mechanics 2 | . . . . . . 1 . . . . . . . . 1 . . . . . . . . . . . Recycling Units 8 | . 2 . 1 . 1 . . . . . 1 . . . 3 . . . . . . . . . . . Monitor 1 | . . . . . . . . . . . . . . . 1 . . . . . . . . . . . Mask 1 | . . . . . . . . . . . . . . . 1 . . . . . . . . . . . Tunnel 6 | . 2 . 1 . 1 . . . . . 1 . . . 1 . . . . . . . . . . . Scanalyzers 1 | . . . . . . . . . . . . . . . . . . . . . . . . . . 1 Researchers 1 | . . . . . . . . . . . . . . . . . . . . . . . . . . 1 Garrison Access 3 | . . . . . . . . . . . 2 . . . 1 . . . . . . . . . . . Reprogram 1 | . . . . . . . . . . . 1 . . . . . . . . . . . . . . . Watchers 1 | . . . . . . . . . . . 1 . . . . . . . . . . . . . . . Jam 1 | . . . . . . . . . . . . . . . 1 . . . . . . . . . . . Data Cores Recovered 1 | . . . . . . . . . . . . . . . . . . . . . . . . . . 1 Used . | . . . . . . . . . . . . . . . . . . . . . . . . . . . Hacking Detections 70 | . 4 . 1 . 7 9 . . . . 12 . . . 14 . . . . 9 . . . . 9 5 Full Trace Events 13 | . . . . . 2 2 . . . . 3 . . . . . . . . 5 . . . . . 1 Feedback Events . | . . . . . . . . . . . . . . . . . . . . . . . . . . . Feedback Blocked . | . . . . . . . . . . . . . . . . . . . . . . . . . . . Robot Schematics Acquired 9 | . . . . . . . . . 6 . . . . . . . . . . . . . . . . 3 Robots Built 13 | . . . . . . . . . . . 2 . . . . . . . . 8 . . . . . 3 Authchips . | . . . . . . . . . . . . . . . . . . . . . . . . . . . Time 304 | . . . . . . . . . . . 40 . . . . . . . . 206 . . . . . 58 Total Robot Build Rating 34 | . . . . . . . . . . . 2 . . . . . . . . 23 . . . . . 9 Part Schematics Acquired 35 | . . . 3 . . 1 . . 8 . 3 . . . 2 . . 4 . . . . . . 1 13 Parts Built 5 | . . . . . . . . . . . 3 . . . . . . . . 2 . . . . . . Authchips . | . . . . . . . . . . . . . . . . . . . . . . . . . . . Time 240 | . . . . . . . . . . . 134 . . . . . . . . 106 . . . . . . Total Part Build Rating 31 | . . . . . . . . . . . 19 . . . . . . . . 12 . . . . . . Parts Repaired 17 | . . . 2 . 4 5 . . . . 1 . . . 2 . . . . . . . . . 3 . Time 671 | . . . 52 . 116 222 . . . . 70 . . . 102 . . . . . . . . . 109 . Parts Recycled 2 | . . . . . . . . . . . . . . . . . . . . . . . . . 2 . Recycled Matter 257 | . . . . . . . . . . . . . . . . . . . . . . . . . 257 . Retrieved Matter 257 | . . . . . . . . . . . . . . . . . . . . . . . . . 257 . Retrieved Components . | . . . . . . . . . . . . . . . . . . . . . . . . . . . Parts Scanalyzed 9 | . . . 3 . . . . . . . 4 . . . 1 . . . . . . . . . 1 . Part Schematics Acquired 8 | . . . 3 . . . . . . . 3 . . . 1 . . . . . . . . . 1 . Parts Damaged 2 | . . . . . . . . . . . 1 . . . . . . . . . . . . . 1 . Bothacking | -11 -10 -10 -9 -9 -8 -7 -7 -7 -7 -6 -6 -6 -6 -5 -5 -5 -5 -5 -4 -4 -4 -4 -4 -3 -3 -3 ------------ Run | Yrd Mat Min Mat Min Mat Fac Low Low Dat Pro Fac Low Zio Pro Fac Upp Upp Zhi Pro Fac Upp Upp War Pro Res Tes Used RIF Installer . | . . . . . . . . . . . . . . . . . . . . . . . . . . . Robots Hacked 21 | . . . . . . 1 1 . 1 . 6 . . . . . . . . 5 . . 2 . 5 . Non-combat 19 | . . . . . . 1 1 . . . 6 . . . . . . . . 5 . . 1 . 5 . Combat 2 | . . . . . . . . . 1 . . . . . . . . . . . . . 1 . . . Robot Hacks Applied 23 | . . . . . . 2 1 . 1 . 6 . . . . . . . . 6 . . 2 . 5 . parse_system 6 | . . . . . . . 1 . 1 . 2 . . . . . . . . . . . 2 . . . no_distress 10 | . . . . . . 1 . . . . 1 . . . . . . . . 5 . . . . 3 . find_chute 2 | . . . . . . . . . . . 2 . . . . . . . . . . . . . . . find_fabricator 1 | . . . . . . . . . . . . . . . . . . . . 1 . . . . . . find_recycling 3 | . . . . . . 1 . . . . 1 . . . . . . . . . . . . . 1 . check_alert 1 | . . . . . . . . . . . . . . . . . . . . . . . . . 1 . Relay Couplers Released . | . . . . . . . . . . . . . . . . . . . . . . . . . . . Fabnet Peak Effective % . | . . . . . . . . . . . . . . . . . . . . . . . . . . . Robots Rewired . | . . . . . . . . . . . . . . . . . . . . . . . . . . . Allies Hacked 2 | . . . . . . . . . . . . . . . . . . . . 2 . . . . . . Hacks Repelled . | . . . . . . . . . . . . . . . . . . . . . . . . . . . Allies | -11 -10 -10 -9 -9 -8 -7 -7 -7 -7 -6 -6 -6 -6 -5 -5 -5 -5 -5 -4 -4 -4 -4 -4 -3 -3 -3 -------- Run | Yrd Mat Min Mat Min Mat Fac Low Low Dat Pro Fac Low Zio Pro Fac Upp Upp Zhi Pro Fac Upp Upp War Pro Res Tes Total Allies 21 | . . . . . . 1 . . . . 4 . . . 2 . . . . 8 . . . . 1 5 Largest Group 6 | . . . . . . 1 . . . . 2 . . . 2 1 . . . 6 . . . . . 5 Highest-Rated Group 240 | . . . . . . 26 . . . . 37 . . . 36 10 . . . 98 . . . . . 240 Highest-Rated Ally 96 | . . . . . . 26 . . . . 37 . . . 26 10 . . . 20 . . . . . 96 Total Orders 8 | . . . . . . . . . . . . . . . . . . . . 1 . . . . 7 . TUNNEL 1 | . . . . . . . . . . . . . . . . . . . . 1 . . . . . . EXPLORE 4 | . . . . . . . . . . . . . . . . . . . . . . . . . 4 . RETURN 3 | . . . . . . . . . . . . . . . . . . . . . . . . . 3 . Ally Attacks 65 | . . . . . . . . . . . 2 . . . . . . . . 30 . . . . . 33 Total Damage 1082 | . . . . . . . . . . . . . . . . . . . . 470 . . . . . 612 Kills 5 | . . . . . . . . . . . . . . . . . . . . 2 . . . . . 3 Allies Corrupted 1 | . . . . . . . . . . . . . . . . . . . . 1 . . . . . . Allies Melted . | . . . . . . . . . . . . . . . . . . . . . . . . . . . Intel | -11 -10 -10 -9 -9 -8 -7 -7 -7 -7 -6 -6 -6 -6 -5 -5 -5 -5 -5 -4 -4 -4 -4 -4 -3 -3 -3 ------- Run | Yrd Mat Min Mat Min Mat Fac Low Low Dat Pro Fac Low Zio Pro Fac Upp Upp Zhi Pro Fac Upp Upp War Pro Res Tes Active Infowar (turns) 11212 | . . . . . 117 2558 211 212 26 862 899 177 243 78 696 248 410 79 407 1040 191 141 310 298 1025 984 Optics 9345 | . . . . . . 2542 34 . . 1 899 177 243 78 696 248 410 79 407 1040 191 141 310 298 1025 526 Sensors 9807 | . . . . . 117 1598 177 212 26 861 899 118 243 78 694 248 410 77 407 1040 187 141 290 298 866 820 Structural 1610 | . . . . . . . . . . . 613 177 243 78 261 . . . . . . . . . 178 60 Traps 221 | . . . . . . . . . . . . . . . 221 . . . . . . . . . . . Seismic 1820 | . . . . . . . . . . . . . . . . . . . . 26 191 141 310 298 533 321 Jamming 1446 | . . . . . . . . . . . . . . . 145 138 . . . 646 191 141 185 . . . Robot Analysis Total 5 | . 1 . . . . . . . . . . . . . . . . 4 . . . . . . . . Derelict Logs Recovered 19 | . . 1 . 1 . . 2 2 . 3 . 1 2 2 . 2 1 . 1 . . 1 . . . . Drone Launches 4 | . . . . . . . . . . . . . . . . . . . . . . . . . 4 . Drone Recoveries 3 | . . . . . . . . . . . . . . . . . . . . . . . . . 3 . Exploration | -11 -10 -10 -9 -9 -8 -7 -7 -7 -7 -6 -6 -6 -6 -5 -5 -5 -5 -5 -4 -4 -4 -4 -4 -3 -3 -3 ------------- Run | Yrd Mat Min Mat Min Mat Fac Low Low Dat Pro Fac Low Zio Pro Fac Upp Upp Zhi Pro Fac Upp Upp War Pro Res Tes Turns Passed 18279 | 135 1934 611 1308 563 2574 2574 247 212 26 869 899 177 243 78 696 248 410 79 407 1040 191 141 310 298 1025 984 Spaces Moved 19710 | 99 887 289 534 301 1245 1398 323 586 92 1122 1868 471 665 255 1387 561 439 164 552 1690 553 447 867 631 1492 792 Core 67 | 27 . . . . 40 . . . . . . . . . . . . . . . . . . . . . Treads 2368 | . . . 523 301 742 802 . . . . . . . . . . . . . . . . . . . . Legs 1466 | 72 887 289 11 . 62 . . . . . . . . . . . . . . . . . . . . 145 Wheels 228 | . . . . . 10 218 . . . . . . . . . . . . . . . . . . . . Hover 472 | . . . . . 391 . . . . . . . . . . . . . . . . . . . . 81 Flight 15109 | . . . . . . 378 323 586 92 1122 1868 471 665 255 1387 561 439 164 552 1690 553 447 867 631 1492 566 Fastest Speed 22 | 50 120 190 160 160 72 26 27 27 27 26 26 28 28 28 26 32 32 32 32 28 31 31 29 29 22 22 Average Speed 62 | 100 179 190 160 160 158 120 27 29 27 38 27 28 28 28 28 32 32 32 32 32 31 31 30 29 38 71 Slowest Speed 800 | 120 260 190 190 160 800 715 27 107 27 109 110 28 28 28 105 32 115 32 108 114 31 31 31 29 104 310 Overloaded Moves . | . . . . . . . . . . . . . . . . . . . . . . . . . . . Propulsion Burnouts . | . . . . . . . . . . . . . . . . . . . . . . . . . . . Robots Hopped 60 | . . . . . . 2 . . . 3 21 . . . 3 2 . . 1 15 . . 3 . 6 4 Potential Cave-ins 5 | . . . . . . . . . . . 5 . . . . . . . . . . . . . . . Cave-ins Triggered . | . . . . . . . . . . . . . . . . . . . . . . . . . . . Teleports 1 | . . . . . . . . . . . . . . . . . . . . . . . . . . 1 Exploration Rate (%) 61 | 7 94 54 51 66 74 40 50 78 74 93 47 55 81 49 48 75 61 63 66 36 65 66 93 74 41 68 Regions Visited 26 Branch Regions 18 Pre-discovered Areas 13 | . 2 . 1 1 1 . . 1 1 . 1 . . . 1 . . 3 1 . . . . . . . Known Exits Taken 22 | . 1 . 1 . . 1 1 1 1 1 1 1 1 1 1 1 1 1 1 1 1 1 1 1 1 . Unknown Exits Taken 4 | 1 . 1 . 1 1 . . . . . . . . . . . . . . . . . . . . . Scrap Searched 24 | . . 1 . . . . 6 3 . 2 . 1 2 . . 2 . . 2 . . 3 . 2 . . Spaces Dug 381 | . . . . . 2 5 . 27 . 60 59 . . . 22 2 1 . . 61 2 1 . 76 41 22 Terrain Destroyed 2014 | . . . 26 99 202 112 131 49 . 169 170 . . 13 80 56 1 . 74 190 59 1 . 137 245 200 Melee 129 | . . . . . 2 5 . . . . 19 . . . 22 2 1 . . 26 2 1 . 1 26 22 Projectile 2 | . . . . . . . . . . . . . . . . . . . . . . . . . . 2 AOE 1883 | . . . 26 99 200 107 131 49 . 169 151 . . 13 58 54 . . 74 164 57 . . 136 219 176 Terrain Rammed . | . . . . . . . . . . . . . . . . . . . . . . . . . . . Walls Destroyed . | . . . . . . . . . . . . . . . . . . . . . . . . . . . Machines Disabled . | . . . . . . . . . . . . . . . . . . . . . . . . . . . Actions | -11 -10 -10 -9 -9 -8 -7 -7 -7 -7 -6 -6 -6 -6 -5 -5 -5 -5 -5 -4 -4 -4 -4 -4 -3 -3 -3 --------- Run | Yrd Mat Min Mat Min Mat Fac Low Low Dat Pro Fac Low Zio Pro Fac Upp Upp Zhi Pro Fac Upp Upp War Pro Res Tes Total 24311 | 121 1054 331 807 350 1668 2149 469 601 92 1533 2170 495 721 259 1631 613 698 180 767 2054 567 447 915 735 1837 1047 Wait 3014 | . 32 29 118 9 211 591 123 1 . 380 196 7 49 . 172 40 252 . 202 218 . . 12 92 196 84 Move 19575 | 98 886 288 533 300 1244 1393 322 585 91 1115 1827 470 664 254 1381 556 438 163 549 1664 552 446 862 630 1480 784 Hop 49 | . . . . . . 2 . . . 3 19 . . . 2 2 . . 1 10 . . 1 . 5 4 Pick Up 211 | 9 21 2 18 7 29 10 4 . . 5 20 1 1 1 9 . 1 5 . 12 2 . 11 . 22 21 Fast Attach 98 | . . 1 2 . 20 21 . . . . 6 2 1 . 8 2 . . 1 10 . . 4 2 12 6 Attach 157 | 6 9 . 14 1 12 10 4 . . 9 10 . 1 . 6 1 3 3 2 9 5 . 7 1 19 25 Detach 30 | . . . . . 1 1 1 . . 3 2 . . . 1 1 . . 2 3 2 . 2 1 6 4 Swap 78 | 1 1 . 8 5 6 7 3 2 . 2 10 1 2 2 8 1 . . 2 9 . . 2 . 5 1 Drop 167 | . 2 1 12 4 19 22 4 . . 4 19 3 3 1 14 2 . 3 1 19 1 . 12 2 13 6 Fire 387 | 7 100 10 84 13 56 27 5 2 . 7 7 . . 1 3 3 . . 7 6 3 . . 6 25 15 Melee 494 | . . . 13 11 70 62 3 11 1 5 36 11 . . 27 5 4 6 . 76 2 1 2 1 54 93 Ram . | . . . . . . . . . . . . . . . . . . . . . . . . . . . Kick 3 | . 3 . . . . . . . . . . . . . . . . . . . . . . . . . Crush 8 | . . . 5 . . 3 . . . . . . . . . . . . . . . . . . . . Escape Stasis 40 | . . . . . . . . . . . 18 . . . . . . . . 18 . . . . . 4 Rewire . | . . . . . . . . . . . . . . . . . . . . . . . . . . . Trap . | . . . . . . . . . . . . . . . . . . . . . . . . . . . Miscellaneous . | . . . . . . . . . . . . . . . . . . . . . . . . . . . Route ------- -11/Scrapyard -10/Materials (discovered 3 exits: *Mat x2 / *Min) -10/Mines -9/Materials (discovered 2 exits: *Mat / *Min) -9/Mines -8/Materials (discovered 2 exits: *Fac / Sto) -7/Factory (discovered 3 exits: *Fac / *Low x2) -7/Lower Caves -7/Lower Caves (discovered 2 exits: *Fac / *Dat) -7/Data Miner -6/Proximity Caves -6/Factory (discovered 6 exits: *Fac x4 / *Low x2) -6/Lower Caves -6/Zion -5/Proximity Caves -5/Factory (discovered 4 exits: *Fac x2 / *Upp x2) -5/Upper Caves -5/Upper Caves (discovered 2 exits: *Fac / *Zhi) -5/Zhirov -4/Proximity Caves -4/Factory (discovered 6 exits: *Res x2 / *Upp x2 / *Ext x2) -4/Upper Caves -4/Upper Caves (discovered 2 exits: Res / *War) -4/Warlord -3/Proximity Caves -3/Research (discovered 3 exits: *Arm / *Tes x2) -3/Testing (discovered 1 exit: *Res) History --------- Turn | Location | Event 2 | -11/Scrapyard | Met Revision 17 78 | -11/Scrapyard | Discovered new exit (range 8) 136 | -11/Scrapyard | Entered Materials 170 | -10/Materials | Identified exit to Mines 308 | -10/Materials | Build established: Mutant 505 | -10/Materials | Discovered new exit (range 7) 1325 | -10/Materials | Core integrity fell below 50% 1647 | -10/Materials | Build established: Scavenger-Mutant 1758 | -10/Materials | Discovered new exit (range 12) 2024 | -10/Materials | Lost 3 parts (1p2w) 2070 | -10/Materials | Entered Mines 2075 | -10/Mines | Core integrity fell below 20% 2281 | -10/Mines | Build established: Mutant 2312 | -10/Mines | YI-UF0 nonchalantly dropped a Grenade Launcher on the ground 2623 | -10/Mines | Discovered new exit (range 8) 2638 | -10/Mines | Learned Materials terminal intel 2681 | -10/Mines | Entered Materials 2681 | -9/Materials | Evolved 2 slots: Propulsion x1, Utility x1 2682 | -9/Materials | Loaded intel: 12 terminal locations 3050 | -9/Materials | Repaired Lgt. Treads 3077 | -9/Materials | Repaired Lgt. Treads 3395 | -9/Materials | Discovered new exit (range 5) 3611 | -9/Materials | Lost 3 parts (1u2w) 3831 | -9/Materials | Identified exit to Mines 3989 | -9/Materials | Entered Mines 4069 | -9/Mines | Assembled infested the area 4155 | -9/Mines | Core integrity fell below 50% 4282 | -9/Mines | Received a Rocket Launcher from a helpful Derelict 4417 | -9/Mines | Learned location of Zion (-6) 4455 | -9/Mines | Found a damaged Exp. Sensor Array with a note attached 4460 | -9/Mines | Found Prototype Device 4471 | -9/Mines | Discovered new exit (range 9) 4552 | -9/Mines | Entered Materials 4552 | -8/Materials | Evolved 2 slots: Propulsion x1, Utility x1 4683 | -8/Materials | Repaired Rocket Launcher 4711 | -8/Materials | Repaired Lgt. Treads 4738 | -8/Materials | Repaired Lrg. Storage Unit 4867 | -8/Materials | Repaired Rocket Launcher 5324 | -8/Materials | Build established: Scavenger-Mutant 5860 | -8/Materials | Build established: Mutant 5982 | -8/Materials | Core integrity fell below 50% 6014 | -8/Materials | Destroyed 7 combat bots 6038 | -8/Materials | Core integrity fell below 20% 6084 | -8/Materials | Lost 10 parts (1p4n2u3w) 6800 | -8/Materials | System corruption reached 10% 6820 | -8/Materials | Identified exit to Storage 7103 | -8/Materials | Discovered new exit (range 15) 7126 | -8/Materials | Entered Factory 7126 | -7/Factory | Evolved 2 slots: Utility x2 7572 | -7/Factory | Build established: Assassin 7975 | -7/Factory | Build established: Hacker-Assassin 7984 | -7/Factory | Repaired Arm. Treads 8018 | -7/Factory | Repaired Imp. Treads 8057 | -7/Factory | Repaired Shock Bomb Launcher 8450 | -7/Factory | Lost 4 parts (2n1u1w) 8648 | -7/Factory | Found Prototype Launcher 8648 | -7/Factory | Identified Rocket Array 8707 | -7/Factory | Build established: Assassin 8757 | -7/Factory | Lost 3 parts (1p1n1u) 9044 | -7/Factory | Repaired Rocket Array 9090 | -7/Factory | Repaired Powered Hammer 9162 | -7/Factory | Allied Derelicts emerged from ambush trap array 9206 | -7/Factory | Build established: Scavenger-Mutant 9329 | -7/Factory | Discovered new exit (range 20) 9373 | -7/Factory | Identified exit to Lower Caves 9526 | -7/Factory | First assault squad dispatched 9619 | -7/Factory | Discovered new exit (range 14) 9629 | -7/Factory | Identified exit to Factory 9678 | -7/Factory | Discovered exit to Lower Caves (range 18) 9700 | -7/Factory | Entered Lower Caves 9770 | -7/Lower Caves | Identified Exp. Sensor Array 9885 | -7/Lower Caves | Learned location of 1 exit from Factory 9913 | -7/Lower Caves | Found DCF Scrap (13 items) 9936 | -7/Lower Caves | Learned location of 1 exit from Factory 9939 | -7/Lower Caves | Discovered new exit (range 10) 9947 | -7/Lower Caves | Identified exit to Lower Caves 9947 | -7/Lower Caves | Entered another Lower Caves area 9996 | -7/Lower Caves | Discovered exit to Factory (range 14) 10041 | -7/Lower Caves | Learned location of Extension (-4) 10073 | -7/Lower Caves | Build established: Hacker-Sprinter 10155 | -7/Lower Caves | Discovered new exit (range 9) 10158 | -7/Lower Caves | Identified exit to Data Miner 10159 | -7/Lower Caves | Entered Data Miner 10159 | -7/Data Miner | Discovered new exit (range 6) 10165 | -7/Data Miner | Met Data Miner 10174 | -7/Data Miner | Learned location of Section 7 (-2) 10174 | -7/Data Miner | Acquired the access code to Warlord's prototype stash 10179 | -7/Data Miner | Received God Mode back door access code from Data Miner 10185 | -7/Data Miner | Identified exit to Proximity Caves 10185 | -7/Data Miner | Entered Proximity Caves 10188 | -6/Proximity Caves | Spotter reported a threat 10193 | -6/Proximity Caves | Learned Factory terminal intel 10241 | -6/Proximity Caves | Spotter reported a threat 10366 | -6/Proximity Caves | Spotter reported a threat 10426 | -6/Proximity Caves | Received a Behemoth hack from an annoying Tinkerer 10591 | -6/Proximity Caves | Spotted B-75 Beast 10723 | -6/Proximity Caves | Learned location of 1 exit from Factory 10788 | -6/Proximity Caves | Learned 4 Factory zone layouts 11053 | -6/Proximity Caves | Discovered exit to Factory (range 7) 11054 | -6/Proximity Caves | Entered Factory 11054 | -6/Factory | Evolved 2 slots: Utility x2 11055 | -6/Factory | Identified exit to Lower Caves 11056 | -6/Factory | Identified exit to Factory 11058 | -6/Factory | Loaded intel: 25 terminal locations 11140 | -6/Factory | Repaired Rocket Array 11361 | -6/Factory | Build established: Hacker-Scout 11624 | -6/Factory | Assembled infested ambush trap array 11719 | -6/Factory | Fabricated T-07 Excavator? 11742 | -6/Factory | Spotted B-75 Beast 11814 | -6/Factory | Fabricated Biomechanical Wings (x1) 11943 | -6/Factory | Fabricated Impulse Thruster (x2) 11953 | -6/Factory | Entered Lower Caves 11976 | -6/Lower Caves | Attacked by a delusional Derelict stockpiling Unaware 12019 | -6/Lower Caves | Learned location of 1 exit from Proximity Caves 12030 | -6/Lower Caves | Entered an active Warlord outpost 12037 | -6/Lower Caves | Learned Armory trap positions 12037 | -6/Lower Caves | Learned Factory stockpile data 12037 | -6/Lower Caves | Learned Research stockpile data 12037 | -6/Lower Caves | Learned Armory stockpile data 12112 | -6/Lower Caves | A Derelict revealed a hidden shortcut to a safe place 12114 | -6/Lower Caves | Identified exit to Zion 12116 | -6/Lower Caves | Encountered a Warlord checkpoint 12130 | -6/Lower Caves | Entered Zion 12143 | -6/Zion | Found CR-A16's Pointy Stick 12160 | -6/Zion | Discovered new exit (range 18) 12193 | -6/Zion | Learned Factory terminal intel 12204 | -6/Zion | Given A8's code to call for help 12240 | -6/Zion | Received a visual enhancement algorithm 12240 | -6/Zion | Ran a visual enhancement algorithm 12281 | -6/Zion | Given the Hacking Drone Bay 12335 | -6/Zion | Learned Factory emergency access door positions 12373 | -6/Zion | Identified exit to Proximity Caves 12373 | -6/Zion | Entered Proximity Caves 12445 | -5/Proximity Caves | Learned Factory stockpile data 12451 | -5/Proximity Caves | Entered Factory 12451 | -5/Factory | Evolved 2 slots: Propulsion x1, Utility x1 12454 | -5/Factory | Loaded intel: 26 terminal locations 12465 | -5/Factory | Discovered new exit (range 9) 12468 | -5/Factory | Identified exit to Factory 12475 | -5/Factory | Spotted B-75 Beast 12680 | -5/Factory | Repaired Cld. Cesium-ion Thruster? 12682 | -5/Factory | Discovered new exit (range 10) 12684 | -5/Factory | Identified exit to Upper Caves 12891 | -5/Factory | Repaired Impulse Thruster 13031 | -5/Factory | Discovered exit to Factory (range 17) 13147 | -5/Factory | Entered Upper Caves 13147 | -5/Upper Caves | Accompanied by 1 ally 13153 | -5/Upper Caves | Identified exit to Upper Caves 13185 | -5/Upper Caves | Spotted B-75 Beast 13280 | -5/Upper Caves | Found DCF Scrap (13 items) 13309 | -5/Upper Caves | Build established: Hacker-Ninja 13341 | -5/Upper Caves | Attracted the attention of an 0b10 checkpoint 13357 | -5/Upper Caves | Acquired the password to a Derelict Tinkerer's latest research 13366 | -5/Upper Caves | Learned Factory emergency access door positions 13395 | -5/Upper Caves | Entered another Upper Caves area 13400 | -5/Upper Caves | Discovered exit to Factory (range 5) 13407 | -5/Upper Caves | Attracted the attention of an 0b10 checkpoint 13646 | -5/Upper Caves | Build established: Hacker-Scout 13741 | -5/Upper Caves | Learned Factory terminal intel 13755 | -5/Upper Caves | Discovered new exit (range 20) 13804 | -5/Upper Caves | Identified exit to Zhirov 13805 | -5/Upper Caves | Entered Zhirov 13805 | -5/Zhirov | Discovered new exit (range 3) 13811 | -5/Zhirov | Met Zhirov 13819 | -5/Zhirov | Learned location of Quarantine (-2) 13819 | -5/Zhirov | Learned location of Testing (-3) 13823 | -5/Zhirov | Zhirov requested help retrieving the SGEMP Prototype 13828 | -5/Zhirov | Found Alien Artifact 13833 | -5/Zhirov | Found Alien Artifact 13835 | -5/Zhirov | Identified Integrated Dissipator 13835 | -5/Zhirov | Installed Integrated Dissipator, increased core heat dissipation (+20) 13884 | -5/Zhirov | Identified exit to Proximity Caves 13884 | -5/Zhirov | Entered Proximity Caves 14260 | -4/Proximity Caves | Discovered exit to Factory (range 20) 14291 | -4/Proximity Caves | Entered Factory 14291 | -4/Factory | Evolved 2 slots: Utility x2 14292 | -4/Factory | Identified exit to Extension 14295 | -4/Factory | Loaded intel: 27 terminal locations 14297 | -4/Factory | Identified Transdimensional Reconstructor 14542 | -4/Factory | Fabricated T-07 Excavator? 14549 | -4/Factory | Identified exit to Upper Caves 14609 | -4/Factory | Fabricated Adv. Hacking Suite (x1) 14853 | -4/Factory | Discovered new exit (range 19) 14871 | -4/Factory | Identified exit to Research 14915 | -4/Factory | Discovered exit to Research (range 18) 14979 | -4/Factory | Build established: Wizard-Ninja 14979 | -4/Factory | Spotted B-86 Titan 15022 | -4/Factory | Fabricated Adv. Hacking Suite (x1) 15039 | -4/Factory | Fabricated B-48 Gladiator? 15084 | -4/Factory | Spotted B-86 Titan 15234 | -4/Factory | Fabricated G-47 Trooper? 15288 | -4/Factory | Lost 3 allies 15331 | -4/Factory | Entered Upper Caves 15385 | -4/Upper Caves | Found Alien Artifact 15386 | -4/Upper Caves | Identified Core Expander 15386 | -4/Upper Caves | Installed Core Expander, added new Weapon slot 15519 | -4/Upper Caves | Discovered new exit (range 11) 15522 | -4/Upper Caves | Identified exit to Upper Caves 15522 | -4/Upper Caves | Entered another Upper Caves area 15546 | -4/Upper Caves | Found DCF Scrap (13 items) 15648 | -4/Upper Caves | Attracted the attention of an 0b10 checkpoint 15659 | -4/Upper Caves | Discovered new exit (range 13) 15663 | -4/Upper Caves | Identified exit to Warlord 15663 | -4/Upper Caves | Entered Warlord 15672 | -4/Warlord | Discovered new exit (range 13) 15703 | -4/Warlord | Found Prototype Device 15704 | -4/Warlord | Identified Minesniffer Drone Bay 15712 | -4/Warlord | Received a Watcher feed algorithm from an ecstatic Tinkerer 15712 | -4/Warlord | Ran a Watcher feed algorithm 15732 | -4/Warlord | Found Prototype Special Weapon 15732 | -4/Warlord | Identified RU-N14's Throwing Claymores v3 15815 | -4/Warlord | Warlord's base attacked by MAIN.C 15815 | -4/Warlord | Met Warlord 15845 | -4/Warlord | Opened Warlord's prototype stash 15852 | -4/Warlord | Found System Mapper 15864 | -4/Warlord | Found Prototype Processor 15865 | -4/Warlord | Identified Exp. Targeting Computer 15872 | -4/Warlord | Found Prototype Processor 15873 | -4/Warlord | Identified Exp. Armor Integrity Analyzer 15875 | -4/Warlord | Found Prototype Device 15876 | -4/Warlord | Identified System Purifier 15904 | -4/Warlord | Found Prototype Piercing Weapon 15905 | -4/Warlord | Identified Vortex Lance 15913 | -4/Warlord | Found Vortex Lance 15965 | -4/Warlord | Opened side exit 15973 | -4/Warlord | Identified exit to Proximity Caves 15973 | -4/Warlord | Entered Proximity Caves 16115 | -3/Proximity Caves | Attracted the attention of an 0b10 checkpoint 16142 | -3/Proximity Caves | Build established: Wizard-Scout 16252 | -3/Proximity Caves | Discovered exit to Research (range 9) 16271 | -3/Proximity Caves | Entered Research 16271 | -3/Research | Evolved 2 slots: Propulsion x1, Utility x1 16272 | -3/Research | Identified exit to Armory 16305 | -3/Research | Repaired Lgt. Antimatter Reactor 16368 | -3/Research | Repaired Rocket Array 16438 | -3/Research | Identified exit to Testing 16545 | -3/Research | Repaired Broken Field Propulsion Array 16767 | -3/Research | Spotted B-86 Titan 16791 | -3/Research | Lost 3 parts (2u1w) 16791 | -3/Research | Found Prototype Processor 16792 | -3/Research | Identified Spectral Analyzer 16834 | -3/Research | Found Fusion Bomb Launcher 16936 | -3/Research | Lost 8 parts (1p4n2u1w) 17232 | -3/Research | Found Fusion Bomb Launcher 17296 | -3/Research | Entered Testing 17317 | -3/Testing | Lost 4 parts (1n3u) 17352 | -3/Testing | Found Portable AFG 17405 | -3/Testing | Found Ghost Barrier 17433 | -3/Testing | Enhanced Grunt warped into view, answering call for help 17439 | -3/Testing | Enhanced Grunt warped into view, answering call for help 17442 | -3/Testing | Identified exit to Research 17448 | -3/Testing | Fabricated G-47 Trooper? 17635 | -3/Testing | Core integrity fell below 50% 17646 | -3/Testing | System corruption reached 10% 17682 | -3/Testing | Lost 10 parts (4n5u1w) 17833 | -3/Testing | Core integrity fell below 20% 17838 | -3/Testing | Warped through subspace 17868 | -3/Testing | Lost 5 parts (1p1n2u1w) 17946 | -3/Testing | Build established: Wizard-Mutant 17996 | -3/Testing | Found Prototype Device 17997 | -3/Testing | Identified Exp. Hardlight Generator 18081 | -3/Testing | Found Prototype Protection 18082 | -3/Testing | Identified Med. Regenerative Plating 18085 | -3/Testing | Found Med. Regenerative Plating 18092 | -3/Testing | Found Med. Regenerative Plating 18221 | -3/Testing | Scanned by Researcher 18257 | -3/Testing | Found Prototype Device 18280 | -3/Testing | Destroyed by P-80 Master with Gamma Rifle Last Messages --------------- 18259_ Fusion Bomb Launcher destroyed. 18262_ The unstable cave ceiling collapses. 18263_ Imp. Corruption Screen intercepted 1% system corruption. 18268_ The unstable cave ceiling collapses. 18269_ K-01 Serf collects debris. 18269_ P-80 Master resets P-80 Master, system corruption cleaned. 18272_ System corrupted: Heat flow error (+247). 18272_ K-01 Serf collects debris. 18273_ Coil Gun destroyed. 18275_ K-01 Serf collects debris. 18275_ Imp. Corruption Screen intercepted 1% system corruption. 18275_ Imp. Corruption Screen expended. 18276_ Ghost Barrier destroyed. 18278_ P-80 Master resets P-80 Master, system corruption cleaned. 18278_ K-01 Serf collects debris. 18279_ The unstable cave ceiling collapses. Map ----- +----------------------------------------------------+ | | | | | | | | | | | | | | | | | | | | | | | ?????????????????????????????????????????????????? | | ?????????????????????????????????????????????????? | | ?????????????????????????????????????????????????? | | ?????????????????????????????????????????????????? | | ?????????????????????????????????????????????????? | | ????????????????????????????##???????????????????? | | ??????????????????????####### ####???????????????? | | ?????????????????????### # # ##??????????????? | | ???????????????????### # #??????????????? | | ??????????????????## # # # # ##?????????????? | | ??????????????????# # # ##+########???? | | ??????????????????# # #???? | | ??????????????????## ! +???? | | ??????????????????# # #???? | | ??????????????????## # @ # #+###### #???? | | ??????????????????# p pp # # * ???????? | | ??????????????????### # ### # ###?? #??????? | | ????????????????????# = #??????" #??????? | | ????????????????????# # %! #????????#??????? | | ????????????????????# %<[ #???????????????? | | ??????????????????###### !? #???????????????? | | ??????????????????# !# #???????????????? | | ??????????????????##" "### #???????????????? | | ??????????????????#" T# #???????????????? | | ??????????????????# ## # #"""????????????? | | ??????????????????#! # k """????????????? | | ??????????????????#T !! """???????????? | | ??????????????????# ? # """???????????? | | ??????????????????##### ## % # ??????????? | | ?????????????????????# ####?????????? | | ?????????????????????# ### #???????????? | | ?????????????????????# # " #??########?? | | ???????????????????### # #??# """ #?? | | ??????????????????##"## ## ##??# """ #?? | | ??????????????????# #???# """ #?? | | ??????????????????# #???# #?? | | ??????????????????# #???# #?? | | ??????????????????# #??## ^ #?? | | ?????????????#######+####### ####"###+####? | +----------------------------------------------------+ Best States ------------- Heat Dissipation 66 Coolant Potential 120 Energy Generation 23 Energy Capacity 500 Matter Stores 300 Matter Capacity 300 Sight Range 23 Robot Scan Range 20 Terrain Scan Density 10 Jamming Range 14 Additional Mass Support 12 Corruption Block 12 Armor Coverage 825 Power Shielding 66 Propulsion Shielding 33 Utility Shielding 33 Weapon Shielding 66 Phase Shifting 10 Evasion (%) 72 Targeting Accuracy 6 Recoil Reduction 4 Offensive Hacking 59 Defensive Hacking 56 Item Schematics ----------------- Lgt. Nuclear Core | -9/Materials | Scanalyzed Hacking Suite | -9/Materials | Scanalyzed Med. Storage Unit | -9/Materials | Scanalyzed Imp. Hacking Suite | -7/Factory | Hacked Combat Drone Bay | -7/Data Miner | Free Lgt. Regenerative Plating | -7/Data Miner | Free Biomechanical Wings | -7/Data Miner | Free Exp. Propulsion Shielding | -7/Data Miner | Free Force Rifle | -7/Data Miner | Free Linear Gravjet | -7/Data Miner | Free Adv. Cooling System | -7/Data Miner | Free Hyp. Gauss Cannon | -7/Data Miner | Free Lrn. Missile Launcher | -6/Factory | Scanalyzed Imp. System Shield | -6/Factory | Scanalyzed Imp. Light Armor Plating | -6/Factory | Scanalyzed Smartbomb Launcher | -5/Factory | Scanalyzed Adv. Hacking Suite | -5/Factory | Hacked Exp. Heat Sink | -5/Zhirov | Free Assault Drone Bay | -5/Zhirov | Free Exp. Optical Array | -5/Zhirov | Free Imp. Arc Thrower | -5/Zhirov | Free Field Propulsion Array | -3/Research | Scanalyzed Exp. Energy Well | -3/Testing | Archive Enh. Biometal Leg | -3/Testing | Archive Gravity Flail | -3/Testing | Archive Shock Maul | -3/Testing | Archive Diametric Drive | -3/Testing | Archive Imp. KE Penetrator | -3/Testing | Archive Imp. Matter Compressor | -3/Testing | Archive Hds. Centrium Wheel | -3/Testing | Archive Adv. Dynamic Insulation System | -3/Testing | Archive Cld. Nuclear Pulse Thruster | -3/Testing | Archive Adv. Thermal Defense Suite | -3/Testing | Archive Particle Accelerator | -3/Testing | Archive Hvy. Dispersion Rifle | -3/Testing | Archive Robot Schematics ------------------ G-47 Trooper | -7/Data Miner | Free B-48 Gladiator | -7/Data Miner | Free M-28 Smith | -7/Data Miner | Free R-10 Processor | -7/Data Miner | Free L-41 Fighter | -7/Data Miner | Free A-15 Conveyor | -7/Data Miner | Free E-15 Imp | -3/Testing | Archive T-07 Excavator | -3/Testing | Archive W-44 Eye | -3/Testing | Archive Fabricated ------------ T-07 Excavator | x2 | -6/Factory | Preloaded Biomechanical Wings | x1 | -6/Factory Impulse Thruster | x2 | -6/Factory | Preloaded T-07 Excavator | x2 | -4/Factory | Preloaded Adv. Hacking Suite | x1 | -4/Factory Adv. Hacking Suite | x1 | -4/Factory B-48 Gladiator | x3 | -4/Factory G-47 Trooper | x3 | -4/Factory G-47 Trooper | x3 | -3/Testing Repaired ---------- Lgt. Treads | 30% | -9/Materials Lgt. Treads | 32% | -9/Materials Rocket Launcher | 54% | -8/Materials Lgt. Treads | 43% | -8/Materials Lrg. Storage Unit | 70% | -8/Materials Rocket Launcher | 38% | -8/Materials Arm. Treads | 30% | -7/Factory Imp. Treads | 25% | -7/Factory Shock Bomb Launcher | 4% | -7/Factory Rocket Array | 44% | -7/Factory Powered Hammer | 60% | -7/Factory Rocket Array | 4% | -6/Factory Cld. Cesium-ion Thruster | 60% | -5/Factory Impulse Thruster | 17% | -5/Factory Lgt. Antimatter Reactor | 10% | -3/Research Rocket Array | 39% | -3/Research Field Propulsion Array | 99% | -3/Research | Broken Alien Tech Used ----------------- Integrated Dissipator Core Expander Transdimensional Reconstructor Achievements -------------- Treasure Hunter War Machine Challenges ------------ None Game ------ Seed DrainedZhirovChargecaster Manual? 0 Play Time 04:01:11 Cumulative 69.7 hours Start 2025.06.11 @ 08:15:22 End 2025.06.11 @ 12:56:40 Sessions 3 Manual Loads 0 Difficulty Rogue Special Mode None Game No. 62 Rogue 62 Adventurer 0 Explorer 0 Win Type - Total 1 Types 1/0/0/0/0/0/0/0/0/0 Lore% 46 Gallery% 46 Achievement% 44 Wizard Run 0 Options --------- Layout 1 ASCII 0 Keyboard 0 Movement Mouse Keybinds 0 Fullscreen 2 Font 24/Smallcaps Map View 50x35 Zoom Use 0% Tactical HUD 1 Map Filters NONE Filters NONE Steam 1 RUN: 8b4891c4-6fc3-46b7-a6e1-4a190fe7b87e